[Event "*** SCC Grand Prix: Titled Tuesday Blitz"]
[Site "Chess.com"]
[Date "2020.06.02"]
[Round "1"]
[White "Agent-JL"]
[Black "CzechmVIII"]
[Result "1-0"]
[WhiteElo "2526"]
[BlackElo "2163"]
[TimeControl "180+1"]
[EndTime "10:08:24 PDT"]
[Termination "Agent-JL won on time"]

1. e4 {[%clk 0:02:59.8]} 1... c5 {[%clk 0:03:00]} 2. Nf3 {[%clk 0:02:56.5]} 2...
d6 {[%clk 0:03:00]} 3. Nc3 {[%clk 0:02:56.9]} 3... Nc6 {[%clk 0:02:56.1]} 4. Bb5
{[%clk 0:02:57]} 4... Bd7 {[%clk 0:02:53.8]} 5. O-O {[%clk 0:02:57.1]} 5... g6
{[%clk 0:02:49.9]} 6. Re1 {[%clk 0:02:57.4]} 6... Bg7 {[%clk 0:02:49.8]} 7. Bf1
{[%clk 0:02:56.8]} 7... Nf6 {[%clk 0:02:48.3]} 8. d3 {[%clk 0:02:51.5]} 8... O-O
{[%clk 0:02:48.1]} 9. Bg5 {[%clk 0:02:49]} 9... a6 {[%clk 0:02:47]} 10. Qd2
{[%clk 0:02:44.7]} 10... b5 {[%clk 0:02:46.3]} 11. Ne2 {[%clk 0:02:45.1]} 11...
Rc8 {[%clk 0:02:39]} 12. Ng3 {[%clk 0:02:44.1]} 12... Nd4 {[%clk 0:02:34.2]} 13.
Nh4 {[%clk 0:02:13.5]} 13... e5 {[%clk 0:02:09.9]} 14. h3 {[%clk 0:01:55.2]}
14... Ne6 {[%clk 0:02:05.6]} 15. Be3 {[%clk 0:01:51.7]} 15... Bc6 {[%clk
0:01:56.3]} 16. Nf3 {[%clk 0:01:38.9]} 16... b4 {[%clk 0:01:49.6]} 17. a3 {[%clk
0:01:36.6]} 17... a5 {[%clk 0:01:48.8]} 18. axb4 {[%clk 0:01:36.7]} 18... axb4
{[%clk 0:01:49.2]} 19. c3 {[%clk 0:01:26.6]} 19... Rb8 {[%clk 0:01:44]} 20. Ra6
{[%clk 0:01:26]} 20... Bb5 {[%clk 0:01:34.7]} 21. Ra7 {[%clk 0:01:24.4]} 21...
bxc3 {[%clk 0:01:07.3]} 22. bxc3 {[%clk 0:01:23.8]} 22... Ra8 {[%clk 0:01:03.9]}
23. Rea1 {[%clk 0:01:04.7]} 23... Rxa7 {[%clk 0:01:03]} 24. Rxa7 {[%clk
0:01:05.6]} 24... Bc6 {[%clk 0:00:45.1]} 25. Ng5 {[%clk 0:00:51.2]} 25... Nxg5
{[%clk 0:00:35.5]} 26. Bxg5 {[%clk 0:00:52.1]} 26... Qb6 {[%clk 0:00:35.5]} 27.
Ra2 {[%clk 0:00:50.6]} 27... Ra8 {[%clk 0:00:33.1]} 28. Rb2 {[%clk 0:00:49]}
28... Qc7 {[%clk 0:00:33.2]} 29. Be3 {[%clk 0:00:33.7]} 29... Bd7 {[%clk
0:00:28.3]} 30. d4 {[%clk 0:00:23.9]} 30... cxd4 {[%clk 0:00:28.2]} 31. cxd4
{[%clk 0:00:24.8]} 31... exd4 {[%clk 0:00:25.4]} 32. Bxd4 {[%clk 0:00:24.9]}
32... Re8 {[%clk 0:00:24.8]} 33. Bd3 {[%clk 0:00:19.8]} 33... Be6 {[%clk
0:00:20.7]} 34. Rc2 {[%clk 0:00:18.2]} 34... Qb7 {[%clk 0:00:19.5]} 35. Qc3
{[%clk 0:00:18.4]} 35... Rc8 {[%clk 0:00:18]} 36. Qa1 {[%clk 0:00:15.8]} 36...
Rxc2 {[%clk 0:00:16.9]} 37. Bxc2 {[%clk 0:00:16.7]} 37... Ne8 {[%clk 0:00:15.8]}
38. Bxg7 {[%clk 0:00:15.4]} 38... Nxg7 {[%clk 0:00:16]} 39. Qf6 {[%clk
0:00:15.7]} 39... Qc7 {[%clk 0:00:11.5]} 40. Bd3 {[%clk 0:00:13.3]} 40... h6
{[%clk 0:00:09.4]} 41. h4 {[%clk 0:00:12.7]} 41... Qc5 {[%clk 0:00:09.5]} 42.
Kh2 {[%clk 0:00:12.3]} 42... Qe5 {[%clk 0:00:09.4]} 43. Qf3 {[%clk 0:00:10.8]}
43... Kh7 {[%clk 0:00:08.4]} 44. Be2 {[%clk 0:00:10.4]} 44... h5 {[%clk
0:00:08.2]} 45. Qe3 {[%clk 0:00:10.9]} 45... Qf6 {[%clk 0:00:06.5]} 46. Qg5
{[%clk 0:00:09.3]} 46... Qxg5 {[%clk 0:00:06.4]} 47. hxg5 {[%clk 0:00:10.2]}
47... Ne8 {[%clk 0:00:06.3]} 48. Bd3 {[%clk 0:00:10]} 48... d5 {[%clk
0:00:06.2]} 49. e5 {[%clk 0:00:09.2]} 49... Nc7 {[%clk 0:00:06.4]} 50. f4 {[%clk
0:00:09.6]} 50... Bd7 {[%clk 0:00:06.2]} 51. Ne2 {[%clk 0:00:10.2]} 51... Ne6
{[%clk 0:00:06.4]} 52. g3 {[%clk 0:00:09.8]} 52... Bc6 {[%clk 0:00:05.9]} 53.
Bc2 {[%clk 0:00:09.1]} 53... Bb5 {[%clk 0:00:05.9]} 54. Nc3 {[%clk 0:00:09.1]}
54... Bc4 {[%clk 0:00:06.2]} 55. Nd1 {[%clk 0:00:09.3]} 55... Nd4 {[%clk
0:00:06]} 56. Bb1 {[%clk 0:00:08.9]} 56... Nf3+ {[%clk 0:00:05.9]} 57. Kg2
{[%clk 0:00:08.8]} 57... Nd2 {[%clk 0:00:06.2]} 58. Bc2 {[%clk 0:00:09.4]} 58...
Nb3 {[%clk 0:00:04.9]} 59. Ne3 {[%clk 0:00:09.5]} 59... Nc5 {[%clk 0:00:04.4]}
60. Kf2 {[%clk 0:00:09.5]} 60... Nd7 {[%clk 0:00:03.6]} 61. Ke1 {[%clk 0:00:09]}
61... Nf8 {[%clk 0:00:03.8]} 62. Kd2 {[%clk 0:00:09.2]} 62... Ne6 {[%clk
0:00:04.1]} 63. Bd1 {[%clk 0:00:08.6]} 63... h4 {[%clk 0:00:04]} 64. gxh4 {[%clk
0:00:08.7]} 64... Nxf4 {[%clk 0:00:04.3]} 65. Bf3 {[%clk 0:00:08.8]} 65... Kg7
{[%clk 0:00:02.5]} 66. Kc3 {[%clk 0:00:09.2]} 66... Kf8 {[%clk 0:00:01.9]} 67.
Kd4 {[%clk 0:00:09.8]} 67... Ke7 {[%clk 0:00:01.3]} 68. Nxc4 {[%clk 0:00:09.4]}
1-0

[Event "*** SCC Grand Prix: Titled Tuesday Blitz"]
[Site "Chess.com"]
[Date "2020.06.02"]
[Round "1"]
[White "talaicito"]
[Black "AwareIdea"]
[Result "0-1"]
[WhiteElo "2109"]
[BlackElo "2507"]
[TimeControl "180+1"]
[EndTime "10:08:25 PDT"]
[Termination "AwareIdea won on time"]

1. d4 {[%clk 0:03:00.9]} 1... d5 {[%clk 0:02:59.6]} 2. Bf4 {[%clk 0:03:00.7]}
2... Nf6 {[%clk 0:02:58.7]} 3. Nc3 {[%clk 0:03:00.7]} 3... a6 {[%clk 0:02:58.3]}
4. e3 {[%clk 0:03:00.6]} 4... c5 {[%clk 0:02:58.5]} 5. Nf3 {[%clk 0:02:59]} 5...
Nc6 {[%clk 0:02:58.5]} 6. dxc5 {[%clk 0:02:45.2]} 6... Bg4 {[%clk 0:02:54.9]} 7.
Be2 {[%clk 0:02:44.1]} 7... e6 {[%clk 0:02:51.7]} 8. Na4 {[%clk 0:02:37.2]} 8...
Ne4 {[%clk 0:02:50.6]} 9. O-O {[%clk 0:02:31.7]} 9... Nxc5 {[%clk 0:02:49.2]}
10. Nxc5 {[%clk 0:02:27.4]} 10... Bxc5 {[%clk 0:02:50.1]} 11. Ne5 {[%clk
0:02:22]} 11... Bxe2 {[%clk 0:02:35.5]} 12. Qxe2 {[%clk 0:02:22.9]} 12... O-O
{[%clk 0:02:36.1]} 13. c4 {[%clk 0:02:19.5]} 13... Ne7 {[%clk 0:02:23.3]} 14.
Rfd1 {[%clk 0:02:14.1]} 14... f6 {[%clk 0:02:18]} 15. Nd3 {[%clk 0:02:07]} 15...
Rc8 {[%clk 0:02:13.2]} 16. Nxc5 {[%clk 0:01:56.9]} 16... Rxc5 {[%clk 0:02:14.1]}
17. cxd5 {[%clk 0:01:53.4]} 17... Rxd5 {[%clk 0:02:09.5]} 18. e4 {[%clk
0:01:49.9]} 18... Rd4 {[%clk 0:01:57.8]} 19. Rxd4 {[%clk 0:01:46.4]} 19... Qxd4
{[%clk 0:01:58.7]} 20. Rd1 {[%clk 0:01:46]} 20... Qa4 {[%clk 0:01:53.6]} 21. b3
{[%clk 0:01:40.1]} 21... Qa5 {[%clk 0:01:49.1]} 22. Bd6 {[%clk 0:01:35.1]} 22...
Re8 {[%clk 0:01:37.4]} 23. Qc4 {[%clk 0:01:34.7]} 23... Kf7 {[%clk 0:01:32.3]}
24. b4 {[%clk 0:01:20.9]} 24... Qb5 {[%clk 0:01:25.9]} 25. Qxb5 {[%clk
0:01:20.3]} 25... axb5 {[%clk 0:01:26.8]} 26. Bc5 {[%clk 0:01:06.4]} 26... Nc6
{[%clk 0:00:56.1]} 27. Rd7+ {[%clk 0:01:05.7]} 27... Kg6 {[%clk 0:00:55.7]} 28.
f4 {[%clk 0:00:58.7]} 28... Ra8 {[%clk 0:00:49.3]} 29. Rxb7 {[%clk 0:00:57.9]}
29... Rxa2 {[%clk 0:00:48.7]} 30. Rxb5 {[%clk 0:00:57.4]} 30... Ra1+ {[%clk
0:00:37.7]} 31. Kf2 {[%clk 0:00:57]} 31... Ra2+ {[%clk 0:00:38.6]} 32. Kg3
{[%clk 0:00:56.1]} 32... Ra3+ {[%clk 0:00:38.7]} 33. Kh4 {[%clk 0:00:53.4]}
33... Ra2 {[%clk 0:00:37.2]} 34. Kh3 {[%clk 0:00:53.4]} 34... Nd8 {[%clk
0:00:34.7]} 35. Rb8 {[%clk 0:00:48.7]} 35... Nf7 {[%clk 0:00:32.4]} 36. b5
{[%clk 0:00:36.9]} 36... Rc2 {[%clk 0:00:30.8]} 37. Bf8 {[%clk 0:00:34.2]} 37...
Rc3+ {[%clk 0:00:21.7]} 38. g3 {[%clk 0:00:33.7]} 38... Rb3 {[%clk 0:00:20.4]}
39. b6 {[%clk 0:00:33]} 39... h5 {[%clk 0:00:13.9]} 40. Rb7 {[%clk 0:00:28.6]}
40... Rb2 {[%clk 0:00:12.7]} 41. f5+ {[%clk 0:00:21]} 41... exf5 {[%clk
0:00:12.7]} 42. exf5+ {[%clk 0:00:21.3]} 42... Kxf5 {[%clk 0:00:13.1]} 43. Rxf7
{[%clk 0:00:21.3]} 43... g5 {[%clk 0:00:12.2]} 44. Rxf6+ {[%clk 0:00:10.7]}
44... Kxf6 {[%clk 0:00:10.3]} 45. g4 {[%clk 0:00:11.2]} 45... hxg4+ {[%clk
0:00:04.1]} 46. Kxg4 {[%clk 0:00:10.1]} 46... Rxb6 {[%clk 0:00:04.9]} 47. Bc5
{[%clk 0:00:09.2]} 47... Rb5 {[%clk 0:00:04.6]} 48. Bg1 {[%clk 0:00:08.2]} 48...
Rf5 {[%clk 0:00:03.7]} 49. Bd4+ {[%clk 0:00:07.3]} 49... Kg6 {[%clk 0:00:03.8]}
50. Be3 {[%clk 0:00:07.4]} 50... Rb5 {[%clk 0:00:03.9]} 51. Kf3 {[%clk
0:00:05.3]} 51... Rb4 {[%clk 0:00:03.6]} 52. Bf2 {[%clk 0:00:04.4]} 52... Rc4
{[%clk 0:00:04]} 53. Kg2 {[%clk 0:00:04.4]} 53... Kf5 {[%clk 0:00:04.5]} 54. Bg3
{[%clk 0:00:04.6]} 54... Rc3 {[%clk 0:00:04.8]} 55. Kf2 {[%clk 0:00:04.5]} 55...
g4 {[%clk 0:00:05.1]} 56. Ke2 {[%clk 0:00:04.4]} 56... Ke4 {[%clk 0:00:05.3]}
57. Kd2 {[%clk 0:00:03.9]} 57... Ra3 {[%clk 0:00:05.2]} 58. Ke2 {[%clk
0:00:04.1]} 58... Ra2+ {[%clk 0:00:05.8]} 59. Kf1 {[%clk 0:00:04.1]} 59... Kf3
{[%clk 0:00:06.7]} 0-1

[Event "*** SCC Grand Prix: Titled Tuesday Blitz"]
[Site "Chess.com"]
[Date "2020.06.02"]
[Round "1"]
[White "WonderChampion"]
[Black "Zufi1811"]
[Result "1/2-1/2"]
[WhiteElo "1957"]
[BlackElo "2461"]
[TimeControl "180+1"]
[EndTime "10:08:26 PDT"]
[Termination "Game drawn by repetition"]

1. e4 {[%clk 0:02:57.1]} 1... c5 {[%clk 0:02:59.6]} 2. Nf3 {[%clk 0:02:57.3]}
2... d6 {[%clk 0:02:59.6]} 3. Bb5+ {[%clk 0:02:56.8]} 3... Nd7 {[%clk
0:02:58.7]} 4. c4 {[%clk 0:02:54.3]} 4... Nf6 {[%clk 0:02:57.6]} 5. Nc3 {[%clk
0:02:53.5]} 5... e5 {[%clk 0:02:57.3]} 6. O-O {[%clk 0:02:50.7]} 6... Be7 {[%clk
0:02:57.2]} 7. d3 {[%clk 0:02:48.3]} 7... h6 {[%clk 0:02:57.7]} 8. Nd5 {[%clk
0:02:47.9]} 8... Nxd5 {[%clk 0:02:56.1]} 9. cxd5 {[%clk 0:02:48.8]} 9... O-O
{[%clk 0:02:55.8]} 10. Bxd7 {[%clk 0:02:42.2]} 10... Bxd7 {[%clk 0:02:55]} 11.
Be3 {[%clk 0:02:39.5]} 11... f5 {[%clk 0:02:54.8]} 12. Bd2 {[%clk 0:02:36.9]}
12... fxe4 {[%clk 0:02:28]} 13. dxe4 {[%clk 0:02:37.8]} 13... Bg4 {[%clk
0:02:28.1]} 14. Qb3 {[%clk 0:02:30.4]} 14... Bxf3 {[%clk 0:02:27]} 15. gxf3
{[%clk 0:02:31.3]} 15... Bg5 {[%clk 0:02:18.3]} 16. Bc1 {[%clk 0:01:32.6]} 16...
b6 {[%clk 0:01:59.2]} 17. Kh1 {[%clk 0:01:21.8]} 17... Bf4 {[%clk 0:01:31.7]}
18. Bxf4 {[%clk 0:01:14.8]} 18... Rxf4 {[%clk 0:01:32.6]} 19. Rg1 {[%clk
0:01:11.9]} 19... Qf6 {[%clk 0:01:32.5]} 20. Rg3 {[%clk 0:01:06.9]} 20... Rf8
{[%clk 0:01:32.2]} 21. Rag1 {[%clk 0:01:02.9]} 21... Rf7 {[%clk 0:01:21]} 22.
Rg6 {[%clk 0:00:55.2]} 22... Qh4 {[%clk 0:01:20.9]} 23. R1g3 {[%clk 0:00:51.6]}
23... Qh5 {[%clk 0:01:09]} 24. Kg2 {[%clk 0:00:42.2]} 24... R4f6 {[%clk
0:01:00.1]} 25. Rxf6 {[%clk 0:00:39.5]} 25... Rxf6 {[%clk 0:01:01]} 26. Qa4
{[%clk 0:00:37]} 26... Qf7 {[%clk 0:00:57.2]} 27. Qc6 {[%clk 0:00:35.9]} 27...
Kh7 {[%clk 0:00:57.3]} 28. Qc8 {[%clk 0:00:35.4]} 28... Rf4 {[%clk 0:00:42.2]}
29. Qb8 {[%clk 0:00:30.8]} 29... Rf6 {[%clk 0:00:35.1]} 30. Qc8 {[%clk
0:00:28.4]} 30... Rf4 {[%clk 0:00:33.7]} 31. Qb8 {[%clk 0:00:28.8]} 31... Qe7
{[%clk 0:00:34.2]} 32. Qc8 {[%clk 0:00:26.8]} 32... h5 {[%clk 0:00:34.6]} 33.
Qh3 {[%clk 0:00:25.4]} 33... g6 {[%clk 0:00:23.4]} 34. b3 {[%clk 0:00:22.2]}
34... Kh6 {[%clk 0:00:22.7]} 35. Qc8 {[%clk 0:00:18.4]} 35... Rf8 {[%clk
0:00:21.7]} 36. Qh3 {[%clk 0:00:17.7]} 36... Rf4 {[%clk 0:00:21.5]} 37. Qc8
{[%clk 0:00:17.1]} 37... Rf8 {[%clk 0:00:17.8]} 38. Qh3 {[%clk 0:00:17]} 38...
h4 {[%clk 0:00:18.1]} 39. Rg4 {[%clk 0:00:15.6]} 39... Rf4 {[%clk 0:00:18.7]}
40. Rxf4 {[%clk 0:00:15.5]} 40... exf4 {[%clk 0:00:19.6]} 41. Qg4 {[%clk
0:00:15.9]} 41... g5 {[%clk 0:00:18.6]} 42. Qf5 {[%clk 0:00:15.7]} 42... Kg7
{[%clk 0:00:18.5]} 43. h3 {[%clk 0:00:15.7]} 43... a6 {[%clk 0:00:17.1]} 44. Kf1
{[%clk 0:00:15.1]} 44... b5 {[%clk 0:00:17.1]} 45. Qc8 {[%clk 0:00:14.9]} 45...
a5 {[%clk 0:00:17.2]} 46. Qa6 {[%clk 0:00:14.1]} 46... b4 {[%clk 0:00:17.1]} 47.
Qxa5 {[%clk 0:00:13.7]} 47... Qe5 {[%clk 0:00:17.5]} 48. Qb5 {[%clk 0:00:12.5]}
48... Kf6 {[%clk 0:00:16.2]} 49. Qb8 {[%clk 0:00:09.8]} 49... Kg7 {[%clk
0:00:14.2]} 50. Qc7+ {[%clk 0:00:09.3]} 50... Kf6 {[%clk 0:00:13.8]} 51. Qd8+
{[%clk 0:00:08]} 51... Kg7 {[%clk 0:00:14.2]} 52. Qd7+ {[%clk 0:00:07]} 52...
Kf6 {[%clk 0:00:13.7]} 53. Qd8+ {[%clk 0:00:07.4]} 53... Kf7 {[%clk 0:00:13.5]}
54. Qd7+ {[%clk 0:00:07.9]} 54... Kg6 {[%clk 0:00:13.1]} 55. Qd8 {[%clk
0:00:07.1]} 55... Qa1+ {[%clk 0:00:12.4]} 56. Kg2 {[%clk 0:00:06]} 56... Qe5
{[%clk 0:00:11]} 57. Qg8+ {[%clk 0:00:06.2]} 57... Kh6 {[%clk 0:00:09.8]} 58.
Qf8+ {[%clk 0:00:05.7]} 58... Kg6 {[%clk 0:00:10.2]} 59. Qg8+ {[%clk 0:00:06.2]}
59... Kh6 {[%clk 0:00:10.1]} 60. Qf8+ {[%clk 0:00:06.5]} 60... Kg6 {[%clk
0:00:09.8]} 61. Qg8+ {[%clk 0:00:07.1]} 1/2-1/2

[Event "*** SCC Grand Prix: Titled Tuesday Blitz"]
[Site "Chess.com"]
[Date "2020.06.02"]
[Round "1"]
[White "Sunnika"]
[Black "Dr-Bassem"]
[Result "0-1"]
[WhiteElo "2399"]
[BlackElo "2787"]
[TimeControl "180+1"]
[EndTime "10:08:28 PDT"]
[Termination "Dr-Bassem won by resignation"]

1. d4 {[%clk 0:02:59.1]} 1... e6 {[%clk 0:02:58.7]} 2. Nf3 {[%clk 0:02:59.7]}
2... f5 {[%clk 0:02:59.1]} 3. g3 {[%clk 0:02:58.8]} 3... Nf6 {[%clk 0:02:59.7]}
4. Bg2 {[%clk 0:02:59.6]} 4... Be7 {[%clk 0:03:00.2]} 5. O-O {[%clk 0:03:00.1]}
5... O-O {[%clk 0:03:00.7]} 6. c4 {[%clk 0:02:57.8]} 6... d6 {[%clk 0:03:01.3]}
7. b3 {[%clk 0:02:57.8]} 7... Qe8 {[%clk 0:03:01.1]} 8. Bb2 {[%clk 0:02:58.3]}
8... Qg6 {[%clk 0:02:57.2]} 9. Nbd2 {[%clk 0:02:58.8]} 9... Nc6 {[%clk
0:02:55.4]} 10. Re1 {[%clk 0:02:58.7]} 10... Ne4 {[%clk 0:02:54.8]} 11. d5
{[%clk 0:02:35]} 11... Nd8 {[%clk 0:02:50]} 12. Nd4 {[%clk 0:02:27.9]} 12... Bd7
{[%clk 0:02:28.8]} 13. dxe6 {[%clk 0:02:23.5]} 13... Nxe6 {[%clk 0:02:27.4]} 14.
Nxf5 {[%clk 0:02:15.3]} 14... Qxf5 {[%clk 0:02:21.1]} 15. Nxe4 {[%clk
0:02:15.7]} 15... Bc6 {[%clk 0:02:20.1]} 16. Qc2 {[%clk 0:01:55.3]} 16... Ng5
{[%clk 0:01:50.2]} 17. Qc3 {[%clk 0:01:47.7]} 17... Rf7 {[%clk 0:01:41.5]} 18.
f3 {[%clk 0:01:37.7]} 18... Nxe4 {[%clk 0:00:59.9]} 19. fxe4 {[%clk 0:01:36]}
19... Qf2+ {[%clk 0:01:00.4]} 20. Kh1 {[%clk 0:01:36.6]} 20... Bf6 {[%clk
0:00:55.8]} 21. Qd2 {[%clk 0:01:35.3]} 21... Bxb2 {[%clk 0:00:53.9]} 22. Qxb2
{[%clk 0:01:36.2]} 22... Raf8 {[%clk 0:00:44]} 23. Rf1 {[%clk 0:01:35.3]} 23...
Qe3 {[%clk 0:00:44]} 24. Rf3 {[%clk 0:01:15.1]} 24... Qxe4 {[%clk 0:00:39.1]}
25. Raf1 {[%clk 0:01:12.2]} 25... Rxf3 {[%clk 0:00:24.1]} 26. exf3 {[%clk
0:01:01.1]} 26... Qe3 {[%clk 0:00:24.3]} 27. f4 {[%clk 0:00:59]} 27... Re8
{[%clk 0:00:19.5]} 28. Bxc6 {[%clk 0:00:55.7]} 28... bxc6 {[%clk 0:00:20.4]} 29.
Qf2 {[%clk 0:00:55.8]} 29... d5 {[%clk 0:00:18]} 30. Qxe3 {[%clk 0:00:45.8]}
30... Rxe3 {[%clk 0:00:17.6]} 31. cxd5 {[%clk 0:00:31.1]} 31... cxd5 {[%clk
0:00:17.3]} 32. Rc1 {[%clk 0:00:31.8]} 32... Re7 {[%clk 0:00:17.6]} 33. Kg1
{[%clk 0:00:31.3]} 33... Kf7 {[%clk 0:00:15.2]} 34. Kf2 {[%clk 0:00:31.4]} 34...
Ke8 {[%clk 0:00:13.4]} 35. Re1 {[%clk 0:00:30.4]} 35... c5 {[%clk 0:00:12.2]}
36. Rxe7+ {[%clk 0:00:29.4]} 36... Kxe7 {[%clk 0:00:13.1]} 37. g4 {[%clk
0:00:29.9]} 37... a5 {[%clk 0:00:11.8]} 38. Ke3 {[%clk 0:00:29.7]} 38... Ke6
{[%clk 0:00:11.8]} 39. h3 {[%clk 0:00:27.6]} 39... g6 {[%clk 0:00:11.4]} 40. Kd3
{[%clk 0:00:27]} 40... Kd6 {[%clk 0:00:09.2]} 41. Ke3 {[%clk 0:00:27]} 41... Kc6
{[%clk 0:00:08.4]} 42. Kd3 {[%clk 0:00:27]} 42... Kb5 {[%clk 0:00:05.8]} 43. f5
{[%clk 0:00:26.9]} 43... gxf5 {[%clk 0:00:05.4]} 44. gxf5 {[%clk 0:00:26.9]}
44... Kc6 {[%clk 0:00:06]} 45. Ke3 {[%clk 0:00:24.5]} 45... Kd6 {[%clk
0:00:06.3]} 46. Kf4 {[%clk 0:00:24.5]} 46... h6 {[%clk 0:00:04.7]} 47. h4 {[%clk
0:00:24.2]} 47... Ke7 {[%clk 0:00:04.8]} 48. Ke5 {[%clk 0:00:24]} 48... d4
{[%clk 0:00:05.3]} 49. Ke4 {[%clk 0:00:22.1]} 49... Kf6 {[%clk 0:00:05.3]} 50.
a3 {[%clk 0:00:21.3]} 50... h5 {[%clk 0:00:04.7]} 51. Kf4 {[%clk 0:00:11.5]}
51... d3 {[%clk 0:00:03.7]} 52. Ke3 {[%clk 0:00:11.7]} 52... Kxf5 {[%clk
0:00:04.4]} 53. Kxd3 {[%clk 0:00:12.2]} 53... Kg4 {[%clk 0:00:05.3]} 54. Kc4
{[%clk 0:00:11.5]} 54... Kxh4 {[%clk 0:00:05.8]} 55. Kxc5 {[%clk 0:00:11.9]}
55... Kg4 {[%clk 0:00:05.4]} 56. b4 {[%clk 0:00:12.3]} 56... axb4 {[%clk
0:00:05]} 57. axb4 {[%clk 0:00:13.2]} 57... h4 {[%clk 0:00:05.5]} 58. b5 {[%clk
0:00:13.8]} 58... h3 {[%clk 0:00:06]} 59. b6 {[%clk 0:00:14.7]} 59... h2 {[%clk
0:00:06.5]} 60. b7 {[%clk 0:00:15.2]} 60... h1=Q {[%clk 0:00:06.5]} 61. b8=Q
{[%clk 0:00:15.3]} 61... Qc1+ {[%clk 0:00:04.9]} 62. Kd4 {[%clk 0:00:14]} 62...
Qf4+ {[%clk 0:00:03.7]} 63. Kd3 {[%clk 0:00:12.4]} 63... Qxb8 {[%clk 0:00:03.4]}
0-1

[Event "*** SCC Grand Prix: Titled Tuesday Blitz"]
[Site "Chess.com"]
[Date "2020.06.02"]
[Round "1"]
[White "Igor_Lysyj"]
[Black "Phriex"]
[Result "1-0"]
[WhiteElo "2777"]
[BlackElo "2394"]
[TimeControl "180+1"]
[EndTime "10:08:30 PDT"]
[Termination "Igor_Lysyj won by checkmate"]

1. d4 {[%clk 0:02:58.5]} 1... d5 {[%clk 0:03:00.1]} 2. c4 {[%clk 0:02:58.1]}
2... e6 {[%clk 0:03:00.3]} 3. Nf3 {[%clk 0:02:57.6]} 3... Nf6 {[%clk 0:02:59.6]}
4. g3 {[%clk 0:02:57.4]} 4... Bb4+ {[%clk 0:02:59.7]} 5. Bd2 {[%clk 0:02:56.8]}
5... Be7 {[%clk 0:03:00.1]} 6. Bg2 {[%clk 0:02:56]} 6... O-O {[%clk 0:02:59.2]}
7. O-O {[%clk 0:02:55.3]} 7... c6 {[%clk 0:02:56.8]} 8. Qc2 {[%clk 0:02:52.1]}
8... Nbd7 {[%clk 0:02:52.6]} 9. a3 {[%clk 0:02:50.4]} 9... Ne4 {[%clk
0:02:50.8]} 10. Bb4 {[%clk 0:02:49.6]} 10... f5 {[%clk 0:02:40.8]} 11. Nc3
{[%clk 0:02:43.4]} 11... a5 {[%clk 0:02:33.1]} 12. Bxe7 {[%clk 0:02:42.5]} 12...
Qxe7 {[%clk 0:02:34]} 13. e3 {[%clk 0:02:28.9]} 13... b6 {[%clk 0:02:31.6]} 14.
Nxe4 {[%clk 0:02:08.1]} 14... fxe4 {[%clk 0:02:30.3]} 15. Nd2 {[%clk 0:02:08.2]}
15... Ba6 {[%clk 0:02:28.3]} 16. Rab1 {[%clk 0:02:02.6]} 16... b5 {[%clk
0:02:23.3]} 17. cxd5 {[%clk 0:01:58.8]} 17... cxd5 {[%clk 0:02:21.8]} 18. b4
{[%clk 0:01:47.2]} 18... Rac8 {[%clk 0:02:19.1]} 19. Qb2 {[%clk 0:01:46.6]}
19... a4 {[%clk 0:02:19.5]} 20. Rbc1 {[%clk 0:01:44.6]} 20... Nb6 {[%clk
0:02:17.1]} 21. Rc5 {[%clk 0:01:38.8]} 21... Nd7 {[%clk 0:02:10.9]} 22. Rxc8
{[%clk 0:01:35.6]} 22... Rxc8 {[%clk 0:02:10.7]} 23. Rc1 {[%clk 0:01:35.5]}
23... Rxc1+ {[%clk 0:02:09.4]} 24. Qxc1 {[%clk 0:01:35.2]} 24... Qd6 {[%clk
0:02:07.4]} 25. Bh3 {[%clk 0:01:25.8]} 25... Bb7 {[%clk 0:01:59.1]} 26. f3
{[%clk 0:01:22.9]} 26... Nf6 {[%clk 0:01:51.5]} 27. Qc5 {[%clk 0:01:19]} 27...
Qd7 {[%clk 0:01:39.8]} 28. fxe4 {[%clk 0:01:15.9]} 28... Nxe4 {[%clk 0:01:39.6]}
29. Nxe4 {[%clk 0:01:15.2]} 29... dxe4 {[%clk 0:01:40.5]} 30. Bg4 {[%clk
0:01:13.7]} 30... Bd5 {[%clk 0:01:36.7]} 31. h4 {[%clk 0:01:07.4]} 31... Kf7
{[%clk 0:01:34.3]} 32. Be2 {[%clk 0:01:06.2]} 32... Bc6 {[%clk 0:01:31.2]} 33.
Qh5+ {[%clk 0:01:06]} 33... Kg8 {[%clk 0:01:29.7]} 34. Qe5 {[%clk 0:01:05.8]}
34... Qd5 {[%clk 0:01:22.9]} 35. Qb8+ {[%clk 0:01:01.1]} 35... Kf7 {[%clk
0:01:22.7]} 36. Qc7+ {[%clk 0:01:00.6]} 36... Kg8 {[%clk 0:01:21.9]} 37. Bg4
{[%clk 0:00:56.5]} 37... Qd7 {[%clk 0:01:08.2]} 38. Qb8+ {[%clk 0:00:53.1]}
38... Kf7 {[%clk 0:01:06.3]} 39. Bh5+ {[%clk 0:00:53.1]} 39... g6 {[%clk
0:01:02.1]} 40. Bg4 {[%clk 0:00:51.8]} 40... Bd5 {[%clk 0:00:55.6]} 41. Qh8
{[%clk 0:00:46]} 41... Qc6 {[%clk 0:00:47.7]} 42. Qxh7+ {[%clk 0:00:45.1]} 42...
Kf6 {[%clk 0:00:42.4]} 43. h5 {[%clk 0:00:21.7]} 43... Qc1+ {[%clk 0:00:31.2]}
44. Kh2 {[%clk 0:00:21.7]} 44... Qxe3 {[%clk 0:00:31.6]} 45. hxg6 {[%clk
0:00:19]} 45... Qf2+ {[%clk 0:00:28]} 46. Kh3 {[%clk 0:00:19]} 46... Qf1+ {[%clk
0:00:28.3]} 47. Kh4 {[%clk 0:00:17.5]} 47... Qh1+ {[%clk 0:00:28]} 48. Bh3
{[%clk 0:00:17.6]} 48... e5 {[%clk 0:00:17.2]} 49. Qh8+ {[%clk 0:00:11.2]} 49...
Kxg6 {[%clk 0:00:14.9]} 50. Qxe5 {[%clk 0:00:11]} 50... Qf3 {[%clk 0:00:13]} 51.
Qxd5 {[%clk 0:00:09.8]} 51... Qf6+ {[%clk 0:00:12.5]} 52. Kg4 {[%clk 0:00:09.2]}
52... e3 {[%clk 0:00:12.9]} 53. Qe4+ {[%clk 0:00:08.7]} 53... Kg7 {[%clk
0:00:12.8]} 54. Qxe3 {[%clk 0:00:08.4]} 54... Qg6+ {[%clk 0:00:13.5]} 55. Kf3
{[%clk 0:00:08.4]} 55... Qf6+ {[%clk 0:00:13.6]} 56. Qf4 {[%clk 0:00:08.4]}
56... Qc6+ {[%clk 0:00:13]} 57. Qe4 {[%clk 0:00:08.2]} 57... Qc2 {[%clk
0:00:13.9]} 58. Qxc2 {[%clk 0:00:07.6]} 58... Kf6 {[%clk 0:00:14.5]} 59. Qc6+
{[%clk 0:00:07.4]} 59... Ke7 {[%clk 0:00:14]} 60. Kf4 {[%clk 0:00:06.9]} 60...
Kf7 {[%clk 0:00:13.7]} 61. Kf5 {[%clk 0:00:07]} 61... Ke7 {[%clk 0:00:14.6]} 62.
Qc7+ {[%clk 0:00:06.9]} 62... Ke8 {[%clk 0:00:14.9]} 63. Kf6 {[%clk 0:00:07]}
63... Kf8 {[%clk 0:00:15.6]} 64. Qd8# {[%clk 0:00:07.2]} 1-0